bitfinex/quotes_SOLUSD_20250424
["timestamp","ask_amount","ask_price","bid_price","bid_amount"]
[1745482947131,1.59829347,146.96,146.94,0.063]
[1745482947335,1.59827514,146.97,146.95,14.26393431]
[1745482947742,1.59827514,146.97,146.94,14.32693431]
[1745482948641,1.59827514,146.97,146.94,0.063]
[1745482949232,1.59827514,146.97,146.94,14.32693431]
[1745482949652,1.59827514,146.97,146.94,0.063]
[1745482951059,15.86220945,146.97,146.94,0.063]
[1745482951751,14.26393431,146.95,146.94,0.063]
[1745482952259,15.92523431,146.95,146.94,0.063]
[1745482953970,1.6613,146.95,146.94,0.063]
[1745482954135,15.92523431,146.95,146.94,0.063]
[1745482955450,1.59827514,146.97,146.94,0.063]
[1745482956139,1.59827514,146.97,146.94,14.32693431]
[1745482957368,1.59827514,146.97,146.94,0.063]
[1745482959866,1.59827514,146.97,146.94,14.32693431]
[1745482960848,1.59827514,146.97,146.94,0.063]
[1745482963066,1.59827514,146.97,146.94,14.32693431]
[1745482964046,1.59827514,146.97,146.96,14.26393431]
[1745482964460,15.6,146.98,146.96,14.26393431]
[1745482964663,15.6,146.98,146.97,14.26393431]
[1745482966876,15.6,146.98,146.96,14.26393431]
[1745482967051,1.59800792,146.97,146.96,14.26393431]
[1745482968358,1.59800792,146.97,146.94,14.32693431]
[1745482969180,1.59800792,146.97,146.94,0.063]
[1745482969481,1.59800792,146.97,146.94,14.32693431]
[1745482969772,1.59800792,146.97,146.94,0.063]
[1745482970755,1.59800792,146.97,146.94,14.32693431]
[1745482970957,1.59800792,146.97,146.95,14.26393431]
[1745482971975,1.59800792,146.97,146.94,14.32693431]
[1745482972578,1.59800792,146.97,146.94,0.063]
[1745482973379,1.59800792,146.97,146.94,14.32693431]
[1745482975399,1.59800792,146.97,146.94,9.19281282]
[1745482976693,1.59800792,146.97,146.95,9.12981282]
[1745482976871,1.59800792,146.97,146.96,9.12981282]
[1745482977268,15.6,146.98,146.96,9.12981282]
[1745482977469,15.6,146.98,146.97,9.12981282]
[1745482978872,16.99758504,147.02,146.97,9.12981282]
[1745482979201,16.99758504,147.02,147.0,9.12981282]
[1745482979495,15.4,147.02,147.01,9.12981282]
[1745482979965,15.43,147.06,147.01,9.12981282]
[1745482980297,1.70038723,147.05,147.04,9.12981282]
[1745482980883,1.70038723,147.05,147.03,9.12981282]
[1745482981395,1.70038723,147.05,147.03,14.24745943]
[1745482982671,1.70038723,147.05,147.02,14.24745943]
[1745482984096,15.94784666,147.05,147.0,14.24745943]
[1745482984491,1.70038723,147.05,147.02,14.24745943]
[1745482986398,1.70038723,147.05,147.01,14.24745943]
[1745482986582,1.70038723,147.05,146.99,26.0]
[1745482986583,1.70038723,147.05,147.02,14.24745943]
[1745482986891,1.70038723,147.05,146.99,26.0]
[1745482987198,1.70038723,147.05,147.02,14.24745943]
[1745482987585,15.94784666,147.05,146.99,26.0]
[1745482987794,1.70038723,147.05,147.01,14.24745943]
[1745482989383,1.70038723,147.05,147.0,14.24745943]
[1745482990476,1.70038723,147.05,147.01,14.24745943]
[1745482991274,15.94784666,147.05,147.0,14.24745943]
[1745482991699,1.70038723,147.05,147.02,14.24745943]
[1745482992199,1.70038723,147.05,147.04,14.24745943]
[1745482992581,15.43,147.06,147.04,14.24745943]
[1745482992778,15.43,147.06,147.05,14.24745943]
[1745482993102,15.43,147.06,147.03,14.24745943]
[1745482993284,1.7003159,147.05,147.03,14.24745943]
[1745482994982,1.7003159,147.05,147.01,14.24745943]
[1745482995687,1.7003159,147.05,147.02,14.24745943]
[1745482996300,1.7003159,147.05,147.01,14.24745943]
[1745482996707,15.94777533,147.05,147.0,14.24745943]
[1745482996908,1.5818,147.04,146.94,0.063]
[1745482997202,14.24745943,147.01,146.96,14.24745943]
[1745482997384,17.08105796,147.0,146.96,14.24745943]
[1745482997586,17.08105796,147.0,146.97,14.24745943]
[1745482997980,31.32851739,147.0,146.95,14.24745943]
[1745482998210,31.32851739,147.0,146.94,14.31045943]
[1745482998386,14.24745943,146.99,146.94,40.31045943]
[1745482998589,1.70126369,146.98,146.94,40.31045943]
[1745482998796,1.70126369,146.98,146.95,14.24745943]
[1745482999588,1.70124651,146.97,146.95,14.24745943]
[1745482999789,29.62745943,147.0,146.95,14.24745943]
[1745482999790,1.7012477,146.99,146.95,14.24745943]
[1745483002316,14.24745943,146.98,146.94,0.063]
[1745483002486,1.70146958,146.97,146.94,0.063]
[1745483003397,1.70143526,146.96,146.94,14.31045943]
[1745483003584,14.24745943,146.99,146.94,14.31045943]
[1745483003585,1.70143526,146.98,146.94,14.31045943]
[1745483003998,1.70143526,146.98,146.95,14.24745943]
[1745483004599,1.70137573,146.97,146.95,14.24745943]
[1745483004809,1.7013635,146.99,146.96,14.24745943]
[1745483005316,1.7013635,146.99,146.95,14.24745943]
[1745483006421,15.94882293,146.99,146.94,14.31045943]
[1745483006803,1.7013635,146.99,146.95,14.24745943]
[1745483007616,15.94882293,146.99,146.94,14.31045943]
[1745483008019,14.24745943,146.98,146.94,0.063]
[1745483008228,1.70165575,146.97,146.94,0.063]
[1745483008602,1.70165575,146.97,146.94,14.31045943]
[1745483009099,1.70165575,146.97,146.95,14.24745943]
[1745483009319,1.70165575,146.97,146.94,14.31045943]
[1745483010224,1.70165575,146.97,146.95,14.24745943]
[1745483010610,15.94911518,146.97,146.94,0.063]
[1745483010809,14.24745943,146.96,146.94,0.063]
[1745483011117,1.7017995,146.95,146.94,0.063]
[1745483011331,1.70183644,146.97,146.94,14.31045943]
[1745483011503,1.70116171,147.0,146.96,14.24745943]
[1745483011815,1.70116171,147.0,146.98,14.24745943]
[1745483013521,1.70116171,147.0,146.96,14.24745943]
[1745483013833,1.70116171,147.0,146.97,14.24745943]
[1745483014429,1.70116171,147.0,146.98,14.24745943]
[1745483014630,1.70116171,147.0,146.97,14.24745943]
[1745483016009,1.70116171,147.0,146.98,14.24745943]
[1745483016708,1.70116171,147.0,146.97,14.24745943]
[1745483019437,1.70116171,147.0,146.96,14.24745943]
[1745483020434,1.70116171,147.0,146.97,14.24745943]
[1745483020936,1.70116171,147.0,146.98,14.24745943]
[1745483022041,1.70116171,147.0,146.97,14.24745943]
[1745483025640,1.70116171,147.0,146.96,14.24745943]
[1745483027347,1.70116171,147.0,146.96,9.12789222]
[1745483027826,1.70116171,147.0,146.97,9.12789222]
[1745483029217,1.70116171,147.0,146.98,9.12789222]
[1745483030740,1.70116171,147.0,146.97,9.12789222]
[1745483032047,1.70116171,147.0,146.98,9.12789222]
[1745483033255,1.70116171,147.0,146.99,9.12789222]
[1745483033661,1.70116171,147.0,146.98,9.12789222]
[1745483034039,1.70116171,147.0,146.97,9.12789222]
[1745483036532,1.70116171,147.0,146.98,9.12789222]
[1745483041863,15.12,147.01,146.99,9.12789222]
[1745483042036,15.12,147.01,147.0,45.6394611]
[1745483042245,14.7,147.05,146.98,18.64964886]
[1745483042433,1.70044983,147.04,146.98,18.64964886]
[1745483042637,1.70044983,147.04,147.02,9.12789222]
[1745483043033,1.70044983,147.04,146.98,18.64964886]
[1745483043273,9.12789222,147.03,146.96,26.0]
[1745483043442,1.70092509,147.02,146.96,26.0]
[1745483043639,1.70092509,147.02,146.98,9.12789222]
[1745483043841,1.70092509,147.02,146.99,9.12789222]
[1745483044152,1.70092509,147.02,146.98,9.12789222]
[1745483044861,1.70092509,147.02,146.99,9.12789222]
[1745483045057,14.7,147.05,146.99,9.12789222]
[1745483045058,1.70086011,147.01,146.99,9.12789222]
[1745483045267,1.70085157,147.03,146.99,9.12789222]
[1745483045633,10.82874379,147.03,146.96,26.0]
[1745483045839,9.12789222,147.01,146.94,26.063]
[1745483046068,16.40117025,147.0,146.96,9.12789222]
[1745483048078,16.40117025,147.0,146.98,9.12789222]
[1745483056798,16.40117025,147.0,146.99,9.12789222]
[1745483058811,16.40117025,147.0,146.94,26.063]
[1745483058976,16.40117025,147.0,146.98,9.12789222]
[1745483059995,16.40117025,147.0,146.99,9.12789222]
[1745483062010,16.40117025,147.0,146.98,9.12789222]
[1745483066219,16.40117025,147.0,146.94,26.063]
[1745483066390,16.40117025,147.0,146.98,9.12789222]
[1745483067412,16.40117025,147.0,146.99,9.12789222]
[1745483067595,1.70074196,147.05,146.99,9.12789222]
[1745483067796,14.4,147.04,147.0,9.12789222]
[1745483068015,1.70073896,147.03,147.0,9.12789222]
[1745483073417,1.70073896,147.03,146.98,9.12789222]
[1745483075122,1.70073896,147.03,146.99,9.12789222]
[1745483075695,1.70073896,147.03,146.94,26.063]
[1745483075904,1.70073896,147.03,146.98,9.12789222]
[1745483077421,1.70073896,147.03,146.99,9.12789222]
[1745483077823,10.82863118,147.03,146.96,26.0]
[1745483078133,10.82863118,147.03,146.97,9.12789222]
[1745483078313,6.6639,147.0,146.95,9.12789222]
[1745483078504,16.08129263,146.99,146.96,9.12789222]
[1745483078704,14.38,146.99,146.98,9.12789222]
[1745483083003,7.38,146.99,146.98,9.12789222]
[1745483084830,7.38,146.99,146.94,0.063]
[1745483085128,1.7013612,146.98,146.95,9.12789222]
[1745483085828,1.7013612,146.98,146.94,0.063]
[1745483086031,1.7013612,146.98,146.95,9.12789222]
[1745483087040,1.7013612,146.98,146.96,9.12789222]
[1745483088738,1.7013612,146.98,146.95,9.12789222]
[1745483088935,1.7013612,146.98,146.94,0.063]
[1745483089144,9.12789222,146.97,146.94,0.063]
[1745483089348,1.70157285,146.96,146.94,0.063]
[1745483090313,1.70160734,146.95,146.94,0.063]
[1745483090629,1.70162254,146.97,146.94,0.063]
[1745483090826,10.82951476,146.97,146.94,0.063]
[1745483091137,1.70162254,146.97,146.94,0.063]
[1745483091349,10.82951476,146.97,146.94,0.063]
[1745483091935,9.12789222,146.96,146.94,0.063]
[1745483092143,1.70186667,146.95,146.94,0.063]
[1745483093840,10.82975889,146.95,146.94,0.063]
[1745483095243,37.31650775,146.95,146.94,0.063]
[1745483096049,9.53896667,146.95,146.94,0.063]
[1745483096625,18.66685889,146.95,146.94,0.063]
[1745483097250,307.44807663,146.95,146.93,0.063]
[1745483097445,79.86910996,146.94,146.92,0.063]
[1745483097655,65.99179958,146.93,146.92,0.063]
[1745483097841,20.35233848,146.93,146.92,0.063]
[1745483098046,29.4802307,146.93,146.92,0.063]
[1745483098355,65.99179958,146.93,146.92,0.063]
[1745483100356,35.12789222,146.91,146.9,0.063]
[1745483100563,27.70283011,146.91,146.9,0.063]
[1745483100859,55.48037119,146.91,146.9,0.063]
[1745483101367,36.83072233,146.91,146.9,0.063]
[1745483102164,27.70283011,146.91,146.9,0.063]
[1745483102333,36.83072233,146.91,146.9,0.063]
[1745483102533,1.70283011,146.91,146.9,0.063]
[1745483102743,1.70216309,146.92,146.9,0.063]
[1745483103564,10.83005531,146.92,146.9,0.063]
[1745483103753,1.70216309,146.92,146.9,0.063]
[1745483105360,1.70216309,146.92,146.91,9.12789222]
[1745483106970,1.70216309,146.92,146.9,0.063]
[1745483107163,1.70216309,146.92,146.91,9.12789222]
[1745483108675,1.70216309,146.92,146.9,0.063]
[1745483109060,1.70216309,146.92,146.9,9.19089222]
[1745483109258,1.70216309,146.92,146.91,9.12789222]
[1745483110660,1.70216309,146.92,146.9,9.19089222]
[1745483113192,1.70216309,146.92,146.9,0.063]
[1745483113686,1.70216309,146.92,146.9,9.19089222]
[1745483114378,1.70216309,146.92,146.9,0.063]
[1745483115258,1.70216309,146.92,146.9,9.19089222]
[1745483116479,1.70216309,146.92,146.9,0.063]
[1745483117481,1.70216309,146.92,146.9,9.19089222]
[1745483117981,1.70216309,146.92,146.9,0.063]
[1745483119177,1.70216309,146.92,146.9,9.19089222]
[1745483120092,15.66,146.91,146.9,0.063]
[1745483120261,15.66,146.91,146.9,9.19089222]
[1745483120873,15.66,146.91,146.9,0.063]
[1745483121067,15.66,146.91,146.9,9.19089222]
[1745483121995,15.66,146.91,146.9,0.063]
[1745483122185,15.66,146.91,146.9,9.19089222]
[1745483124578,15.66,146.91,146.9,0.063]
[1745483124779,15.66,146.91,146.9,9.19089222]
[1745483125286,17.36202617,146.91,146.9,9.19089222]
[1745483126070,15.66,146.91,146.9,9.19089222]
[1745483126490,1.70202431,146.94,146.9,45.7024611]
[1745483126672,1.70202431,146.94,146.93,45.6394611]
[1745483126869,249.28,146.95,146.93,45.6394611]
[1745483127083,249.28,146.95,146.94,9.12789222]
[1745483128183,0.063,146.98,146.94,9.12789222]
[1745483128385,15.66,146.97,146.93,36.51156888]
[1745483128583,15.66,146.97,146.96,9.12789222]
[1745483132810,14.97174515,146.97,146.96,9.12789222]
[1745483145318,14.97174515,146.97,146.95,9.12789222]
[1745483146417,14.97174515,146.97,146.94,9.12789222]
[1745483149318,14.97174515,146.97,146.92,26.0]
[1745483149498,14.97174515,146.97,146.95,9.12789222]
[1745483150711,14.97174515,146.97,146.94,9.12789222]
[1745483152628,14.97174515,146.97,146.92,26.0]
[1745483152821,14.97174515,146.97,146.95,9.12789222]
[1745483154130,14.97174515,146.97,146.96,9.12789222]
[1745483154814,14.97174515,146.97,146.95,9.12789222]
[1745483156931,14.97174515,146.97,146.93,18.64964886]
[1745483157231,14.97174515,146.97,146.95,9.12789222]
[1745483160436,14.97174515,146.97,146.93,18.64964886]
[1745483160612,14.97174515,146.97,146.94,9.12789222]
[1745483161332,14.97174515,146.97,146.95,9.12789222]
[1745483163131,0.063,146.98,146.96,9.12789222]
[1745483163451,0.063,146.98,146.97,9.12789222]
[1745483163609,0.063,146.98,146.96,18.64964886]
[1745483163808,0.063,146.98,146.97,9.12789222]
[1745483169647,0.063,146.98,146.95,27.5842]
[1745483169812,0.063,146.98,146.97,9.12789222]
[1745483170014,0.063,146.98,146.95,27.5842]
[1745483170228,0.063,146.98,146.96,9.12789222]
[1745483171241,0.063,146.98,146.97,9.12789222]
[1745483172105,0.063,146.98,146.96,18.64964886]
[1745483172441,0.063,146.98,146.97,9.12789222]
[1745483172831,0.063,146.98,146.96,26.0]
[1745483173042,0.063,146.98,146.96,35.12789222]
[1745483173734,0.063,146.98,146.94,26.0]
[1745483173931,0.063,146.98,146.96,26.0]
[1745483174132,0.063,146.98,146.97,9.12789222]
[1745483175337,0.063,146.98,146.95,9.12789222]
[1745483176837,0.063,146.98,146.94,35.12789222]
[1745483177214,0.063,146.98,146.94,26.0]
[1745483177440,0.063,146.98,146.94,35.12789222]
[1745483177929,0.063,146.98,146.94,9.12789222]
[1745483179739,0.063,146.98,146.92,26.0]
[1745483179740,1.6481,146.98,146.92,26.0]
[1745483179938,0.063,146.98,146.95,9.12789222]
[1745483180120,0.063,146.98,146.96,9.12789222]
[1745483181040,0.063,146.98,146.95,9.12789222]
[1745483181815,9.19089222,146.98,146.92,44.64964886]
[1745483182038,1.70103631,146.97,146.93,9.12789222]
[1745483182221,15.06,146.96,146.93,9.12789222]
[1745483182617,15.06,146.96,146.9,0.063]
[1745483182850,1.70142307,146.95,146.92,9.12789222]
[1745483183621,1.70142307,146.95,146.9,0.063]
[1745483183935,25.88935907,146.96,146.92,9.12789222]
[1745483185043,16.76146685,146.96,146.92,9.12789222]
[1745483185236,16.76146685,146.96,146.9,0.063]
[1745483185543,16.76146685,146.96,146.92,9.12789222]
[1745483186153,25.88935907,146.96,146.92,9.12789222]
[1745483186462,16.76146685,146.96,146.92,9.12789222]
[1745483186618,15.06,146.96,146.92,9.12789222]
[1745483187243,1.70140918,146.95,146.92,9.12789222]
[1745483187413,25.88933769,146.96,146.9,0.063]
[1745483187614,25.88933769,146.96,146.92,9.12789222]
[1745483189018,25.88933769,146.96,146.91,9.12789222]
[1745483189357,9.12789222,146.95,146.9,9.19089222]
[1745483190351,25.88933769,146.96,146.91,9.12789222]
[1745483190645,9.12789222,146.95,146.91,9.12789222]
[1745483191218,16.76144547,146.96,146.93,9.12789222]
[1745483192225,1.70144012,146.95,146.93,9.12789222]
[1745483192954,1.70144012,146.95,146.9,0.063]
[1745483193250,1.70143231,146.95,146.93,9.12789222]
[1745483194922,1.70143231,146.95,146.92,9.12789222]
[1745483196458,16.76143337,146.96,146.9,0.063]
[1745483196643,16.76143337,146.96,146.93,9.12789222]
[1745483198277,16.76143337,146.96,146.94,9.12789222]
[1745483198660,16.76143337,146.96,146.93,9.12789222]
[1745483198854,16.76143337,146.96,146.9,0.063]
[1745483199154,16.76143337,146.96,146.93,9.12789222]
[1745483199681,15.06,146.96,146.94,9.12789222]
[1745483200166,1.70139121,146.95,146.94,9.12789222]
[1745483204383,15.06,146.96,146.94,9.12789222]
[1745483204564,15.06,146.96,146.95,9.12789222]
[1745483205185,24.18789222,146.96,146.92,9.12789222]
[1745483206097,9.12789222,146.95,146.91,9.12789222]
[1745483206394,10.82920753,146.95,146.9,9.19089222]
[1745483206978,9.12789222,146.93,146.9,0.063]
[1745483207580,10.82966156,146.92,146.9,0.063]
[1745483208181,14.86,146.91,146.9,0.063]
[1745483215601,14.86,146.95,146.9,9.19089222]
[1745483215807,14.86,146.95,146.94,9.12789222]
[1745483215976,14.86,146.95,146.94,27.77754108]
[1745483216295,0.063,146.98,146.94,27.77754108]
[1745483216296,0.063,146.98,146.94,29.11056229]
[1745483216472,0.063,146.98,146.96,9.12789222]
[1745483217509,0.063,146.98,146.95,9.12789222]
[1745483219011,0.063,146.98,146.94,9.12789222]
[1745483220609,9.19089222,146.98,146.93,9.12789222]
[1745483220909,9.12789222,146.96,146.92,26.0]
[1745483221112,10.82904628,146.97,146.92,35.12789222]
[1745483221418,0.063,146.98,146.93,1.33346388]
[1745483221600,0.063,146.98,146.94,9.12789222]
[1745483222518,0.063,146.98,146.95,9.12789222]
[1745483225200,10.89183629,146.98,146.92,26.0]
[1745483225516,0.063,146.98,146.94,9.12789222]
[1745483226324,9.19089222,146.98,146.93,9.12789222]
[1745483226511,0.063,146.98,146.94,9.12789222]
[1745483227130,0.063,146.98,146.92,26.0]
[1745483227299,10.82894966,146.97,146.92,26.0]
[1745483227616,10.89209437,146.98,146.93,9.12789222]
[1745483228436,9.19089222,146.98,146.93,9.12789222]
[1745483229824,0.063,146.98,146.93,9.12789222]
[1745483230120,9.19089222,146.98,146.93,9.12789222]
[1745483230328,0.063,146.98,146.93,9.12789222]
[1745483230503,9.19089222,146.98,146.93,9.12789222]
[1745483231013,9.12789222,146.97,146.92,35.12789222]
[1745483231207,9.12789222,146.97,146.92,9.12789222]
[1745483231715,10.89200452,146.98,146.93,9.12789222]
[1745483232023,0.063,146.98,146.94,9.12789222]
[1745483232415,10.89195876,146.98,146.93,9.12789222]
[1745483236518,1.76406654,146.98,146.93,9.12789222]
[1745483236715,10.89195876,146.98,146.93,9.12789222]
[1745483236922,9.19089222,146.98,146.93,9.12789222]
[1745483237325,0.063,146.98,146.95,9.12789222]
[1745483241619,0.063,146.98,146.91,26.0]
[1745483241620,9.19089222,146.98,146.91,26.0]
[1745483241815,9.12789222,146.96,146.91,35.12789222]
[1745483242608,10.82926041,146.95,146.91,26.0]
[1745483242933,14.66,146.94,146.91,26.0]
[1745483243927,23.78789222,146.94,146.9,0.063]
[1745483244111,9.12789222,146.93,146.9,0.063]
[1745483244312,23.78789222,146.94,146.9,0.063]
[1745483245727,23.78789222,146.94,146.9,9.19089222]
[1745483245930,14.66,146.94,146.9,9.19089222]
[1745483246437,14.66,146.94,146.9,0.063]
[1745483246734,14.66,146.94,146.91,9.12789222]
[1745483247343,14.66,146.94,146.9,0.063]
[1745483247516,14.66,146.94,146.9,9.19089222]
[1745483247715,14.66,146.94,146.91,9.12789222]
[1745483249236,14.66,146.94,146.9,0.063]
[1745483249446,14.66,146.94,146.9,9.19089222]
[1745483250239,14.66,146.94,146.9,0.063]
[1745483250425,14.66,146.94,146.9,9.19089222]
[1745483251122,14.66,146.94,146.9,0.063]
[1745483251331,14.66,146.94,146.9,9.19089222]
[1745483251531,14.66,146.94,146.91,9.12789222]
[1745483255247,14.66,146.94,146.9,0.063]
[1745483255456,14.66,146.94,146.9,9.19089222]
[1745483255826,14.66,146.94,146.91,9.12789222]
[1745483257149,14.66,146.94,146.9,0.063]
[1745483257451,14.66,146.94,146.92,9.12789222]
[1745483257868,14.66,146.94,146.91,9.12789222]
[1745483259142,14.66,146.94,146.9,0.063]
[1745483259348,14.66,146.94,146.91,9.12789222]
[1745483262543,14.66,146.94,146.9,0.063]
[1745483262738,14.66,146.94,146.91,9.12789222]
[1745483264254,23.78789222,146.94,146.9,0.063]
[1745483264433,10.8293798,146.93,146.9,0.063]
[1745483266650,9.12789222,146.92,146.9,0.063]
[1745483266853,10.82991449,146.91,146.9,0.063]
[1745483267055,1.70202227,146.91,146.9,0.063]
[1745483267244,1.5813,146.93,146.9,0.063]
[1745483267245,12.41122311,146.93,146.9,0.063]
[1745483267965,9.12789222,146.92,146.9,0.063]
[1745483268263,1.70190448,146.91,146.9,0.063]
[1745483269437,10.8297967,146.91,146.9,0.063]
[1745483269946,1.70190448,146.91,146.9,0.063]
[1745483270145,9.12789222,146.91,146.9,0.063]
[1745483270344,15.67709222,146.91,146.9,0.063]
[1745483271737,41.67709222,146.91,146.9,0.063]
[1745483272644,60.32674108,146.91,146.9,0.063]
[1745483272842,61.97874108,146.91,146.9,0.063]
[1745483273162,35.97874108,146.91,146.9,0.063]
[1745483273361,35.12789222,146.9,146.89,0.063]
[1745483273541,36.83054042,146.9,146.89,0.063]
[1745483274278,18.64964886,146.89,146.88,0.063]
[1745483274436,41.66269222,146.88,146.87,0.03]
[1745483274761,44.98982959,146.88,146.87,0.03]
[1745483274942,81.50139847,146.88,146.87,0.03]
[1745483275146,81.50139847,146.88,146.86,0.03]
[1745483275340,45.6394611,146.87,146.86,0.03]
[1745483276258,64.28910996,146.87,146.86,0.03]
[1745483279461,64.28910996,146.86,146.81,0.063]
[1745483279669,36.83111375,146.85,146.81,0.063]
[1745483282666,51.39111375,146.85,146.81,0.063]
[1745483284465,51.39111375,146.85,146.82,9.19089222]
[1745483284466,14.56,146.85,146.82,9.19089222]
[1745483284845,23.68789222,146.85,146.82,0.063]
[1745483285751,49.68789222,146.85,146.82,0.063]
[1745483291083,44.64964886,146.83,146.82,0.063]
[1745483291377,44.64964886,146.83,146.8,0.063]
[1745483291378,73.34282392,146.83,146.8,0.063]
[1745483291554,35.12789222,146.81,146.8,0.063]
[1745483291762,71.6394611,146.81,146.8,0.063]
[1745483292150,71.6394611,146.81,146.79,0.063]
[1745483292350,61.90298938,146.8,146.79,0.063]
[1745483294577,61.90298938,146.8,146.77,0.03]
[1745483294578,9.12789222,146.78,146.77,0.03]
[1745483294781,10.83153627,146.78,146.77,0.03]
[1745483295089,36.83153627,146.78,146.77,0.03]
[1745483295290,26.0,146.75,146.71,0.03]
[1745483295494,9.12789222,146.72,146.71,0.03]
[1745483296286,16.26402673,146.74,146.71,0.03]
[1745483296588,9.12789222,146.72,146.71,0.03]
[1745483297364,45.6394611,146.72,146.71,0.03]
[1745483297561,9.12789222,146.72,146.71,0.03]
[1745483298070,45.6394611,146.72,146.71,0.03]
[1745483298584,9.12789222,146.72,146.71,0.03]
[1745483299464,45.6394611,146.72,146.71,0.03]
[1745483299683,9.12789222,146.72,146.71,0.03]
[1745483300283,45.6394611,146.72,146.71,0.03]
[1745483301194,9.12789222,146.72,146.71,0.03]
[1745483305067,9.12789222,146.72,146.69,0.03]
[1745483305295,9.12789222,146.7,146.69,0.03]
[1745483305788,1.70439675,146.71,146.69,0.03]
[1745483305990,9.12789222,146.71,146.69,0.03]
[1745483306375,9.12789222,146.7,146.69,0.03]
[1745483309577,36.83256829,146.7,146.69,0.03]
[1745483309768,54.11296051,146.7,146.65,0.03]
[1745483309967,26.0,146.66,146.65,0.03]
[1745483310275,89.44462612,146.66,146.65,0.03]
[1745483310481,98.45032612,146.66,146.56,0.03]
[1745483310680,26.0,146.62,146.56,0.03]
[1745483310866,1.70568528,146.61,146.56,0.03]
[1745483311071,25.90789222,146.6,146.56,0.03]
[1745483311266,9.12789222,146.58,146.56,0.03]
[1745483311488,1.70579621,146.59,146.56,0.03]
[1745483311996,16.78,146.6,146.57,9.12789222]
[1745483312185,18.4853299,146.6,146.56,0.03]
[1745483312700,27.61322212,146.6,146.56,0.03]
[1745483312875,18.4853299,146.6,146.56,0.03]
[1745483313076,16.78,146.6,146.56,0.03]
[1745483313276,27.6507,146.57,146.56,0.03]
[1745483313471,27.6507,146.57,146.5,0.03]
[1745483313673,27.70636579,146.56,146.5,0.03]
[1745483313975,26.0,146.55,146.5,0.03]
[1745483314282,1.70677193,146.54,146.5,0.03]
[1745483314602,27.70677193,146.54,146.5,0.03]
[1745483314986,1.70677193,146.54,146.5,0.03]
[1745483315884,1.70656344,146.53,146.5,0.03]
[1745483316481,14.35822245,146.51,146.5,0.03]
[1745483316682,1.70691373,146.51,146.5,0.03]
[1745483316899,30.42335863,146.51,146.5,0.03]
[1745483317079,1.70691373,146.51,146.5,0.03]
[1745483317704,14.35822245,146.51,146.5,0.03]
[1745483318072,28.7164449,146.51,146.5,0.03]
[1745483318611,27.70674123,146.52,146.5,0.03]
[1745483318773,14.35822245,146.51,146.5,0.03]
[1745483319193,27.70674123,146.52,146.5,0.03]
[1745483319399,28.7164449,146.51,146.5,0.03]
[1745483319907,14.35822245,146.51,146.5,0.03]
[1745483320094,28.7164449,146.51,146.5,0.03]
[1745483321003,16.06520115,146.51,146.44,33.00787131]
[1745483321217,14.35822245,146.5,146.45,14.35822245]
[1745483321578,16.06499009,146.49,146.44,14.35822245]
[1745483321978,1.70676764,146.49,146.43,33.00787131]
[1745483322178,14.35822245,146.47,146.4,26.10511364]
[1745483322374,14.35822245,146.47,146.42,14.35822245]
[1745483322612,14.35822245,146.47,146.41,18.64964886]
[1745483322781,14.35822245,146.47,146.42,14.35822245]
[1745483322985,14.35822245,146.47,146.41,18.64964886]
[1745483323185,1.70710973,146.5,146.42,14.35822245]
[1745483323799,1.70710973,146.5,146.42,14.35822245]
[1745483323994,14.35822245,146.47,146.42,14.35822245]
[1745483324398,16.06533603,146.46,146.41,33.00787131]
[1745483324595,1.70713348,146.5,146.42,14.35822245]
[1745483324794,1.70713348,146.5,146.44,14.35822245]
[1745483325109,14.35822245,146.5,146.45,14.35822245]
[1745483325310,1.70670673,146.51,146.46,14.35822245]
[1745483325687,248.57822245,146.52,146.47,14.35822245]
[1745483325883,234.22,146.52,146.47,14.35822245]
[1745483326102,1.70651418,146.51,146.42,18.64964886]
[1745483326412,14.35822245,146.49,146.41,1.34396673]
[1745483326582,1.70651418,146.51,146.45,14.35822245]
[1745483326785,1.70651418,146.51,146.46,14.35822245]
[1745483327115,234.22,146.52,146.47,33.00787131]